bitfinex/quotes_ETHUSD_20251119
["timestamp","ask_amount","ask_price","bid_price","bid_amount"]
[1763579676125,3.95209438,2896.8,2895.6,0.3648]
[1763579676126,0.5,2896.8,2895.6,0.3648]
[1763579676354,0.90699264,2896.7,2895.6,0.3648]
[1763579676830,1.40699264,2896.7,2895.6,0.3648]
[1763579677277,0.5,2896.6,2895.5,0.001]
[1763579678276,0.90699264,2896.5,2895.5,0.001]
[1763579678433,0.48594214,2896.4,2895.5,0.001]
[1763579678830,0.4645,2896.3,2895.5,0.001]
[1763579679360,0.4645,2896.8,2895.5,0.3666]
[1763579679669,1.37149264,2896.8,2895.5,0.3666]
[1763579679892,0.4645,2896.7,2895.5,0.3666]
[1763579680574,0.90699264,2896.5,2895.5,0.3666]
[1763579680897,0.43593161,2896.4,2895.5,0.3666]
[1763579681097,0.90043161,2896.4,2895.5,0.001]
[1763579681618,0.4645,2896.4,2895.5,0.001]
[1763579682688,0.194,2896.9,2895.5,0.001]
[1763579682689,0.4645,2896.8,2895.6,0.3656]
[1763579683361,0.4645,2896.7,2895.6,0.3656]
[1763579684062,0.4645,2896.7,2895.5,0.001]
[1763579684690,0.90699264,2896.6,2895.5,0.001]
[1763579684880,0.48237684,2896.5,2895.5,0.001]
[1763579685080,0.94687684,2896.5,2895.5,0.001]
[1763579685501,0.4645,2896.4,2895.5,0.001]
[1763579686701,0.4645,2896.4,2895.5,0.3666]
[1763579687485,1.56549264,2896.9,2895.6,0.405504]
[1763579687679,1.4576449,2896.8,2895.5,0.001]
[1763579688022,1.20845396,2896.7,2895.5,0.001]
[1763579688190,1.20845396,2896.7,2895.6,0.405504]
[1763579688391,0.4645,2896.6,2895.5,0.001]
[1763579688986,0.4645,2896.6,2895.5,0.3666]
[1763579689181,0.46607434,2896.5,2895.5,0.3666]
[1763579689696,0.93057434,2896.5,2895.5,0.3666]
[1763579690183,1.6745283,2896.5,2895.5,0.3666]
[1763579690527,0.4645,2896.4,2895.5,0.3666]
[1763579692021,0.4645,2896.4,2895.5,0.001]
[1763579692187,1.06789111,2896.4,2895.5,0.001]
[1763579692521,1.81184507,2896.4,2895.5,0.001]
[1763579692820,1.20845396,2896.4,2895.5,0.3666]
[1763579693025,0.4645,2896.4,2895.5,0.3666]
[1763579693318,1.20845396,2896.4,2895.5,0.3666]
[1763579693508,0.4645,2896.4,2895.5,0.3666]
[1763579693706,0.74395396,2896.3,2895.5,0.001]
[1763579694023,0.21348708,2896.2,2895.5,0.001]
[1763579694232,0.95744104,2896.2,2895.5,0.001]
[1763579694383,0.67798708,2896.2,2895.5,0.001]
[1763579696422,1.42194104,2896.2,2895.5,0.001]
[1763579696632,0.74395396,2896.1,2895.5,0.001]
[1763579697094,0.67798708,2896.2,2895.5,0.001]
[1763579698229,0.74395396,2896.3,2895.7,0.3454]
[1763579698397,0.74395396,2896.4,2896.1,0.3656]
[1763579698597,0.74395396,2896.4,2895.7,0.3656]
[1763579698791,0.74395396,2896.4,2895.5,0.406504]
[1763579698992,0.74395396,2896.4,2895.5,0.3666]
[1763579700628,0.74395396,2896.4,2896.3,0.5045]
[1763579700836,0.74395396,2896.7,2896.3,0.5045]
[1763579701037,0.4724,2896.4,2895.5,0.406504]
[1763579701392,0.74395396,2896.6,2896.3,0.5045]
[1763579701640,0.002,2896.8,2896.5,0.3656]
[1763579701940,0.4578681,2897.1,2896.5,0.3656]
[1763579702124,0.74697085,2897.1,2896.7,0.3722]
[1763579702305,0.6714,2896.6,2896.1,0.1455]
[1763579702510,0.4724,2896.5,2896.1,0.1455]
[1763579702904,0.4724,2896.5,2895.6,0.777704]
[1763579702905,0.4724,2896.5,2895.7,0.405504]
[1763579703239,0.74634222,2896.9,2896.4,0.3722]
[1763579703540,0.199,2896.9,2895.7,0.777704]
[1763579703747,0.3861759,2896.9,2895.5,0.001]
[1763579703947,0.9264168,2896.4,2895.5,0.001]
[1763579704100,1.67275902,2896.4,2895.5,0.001]
[1763579704305,0.4645,2896.3,2895.5,0.001]
[1763579704503,0.6714,2895.6,2895.5,0.001]
[1763579704939,1.1359,2895.6,2895.5,0.001]
[1763579705155,2.25054102,2895.6,2895.5,0.001]
[1763579705445,2.07046644,2895.6,2895.5,0.001]
[1763579705955,3.90387588,2895.6,2895.5,0.001]
[1763579706194,2.97745908,2895.6,2895.5,0.001]
[1763579706313,1.41774222,2895.6,2895.5,0.001]
[1763579706645,1.1359,2895.6,2895.5,0.001]
[1763579707224,0.6714,2895.6,2895.5,0.001]
[1763579707614,1.88224222,2895.6,2895.5,0.001]
[1763579708111,0.1942,2895.8,2895.5,0.001]
[1763579708725,0.74504549,2896.0,2895.5,0.001]
[1763579708950,0.1942,2896.4,2895.9,0.3722]
[1763579709109,1.36769264,2896.3,2895.5,0.001]
[1763579709445,0.74494348,2896.2,2895.5,0.001]
[1763579709655,1.20564348,2896.2,2895.5,0.001]
[1763579709982,0.4607,2896.1,2895.5,0.001]
[1763579710457,0.4634,2895.6,2895.5,0.001]
[1763579710615,3.91364072,2896.1,2895.5,0.001]
[1763579710616,3.91362169,2896.1,2895.5,0.001]
[1763579710948,0.85206217,2896.0,2895.5,0.001]
[1763579711531,0.4607,2895.9,2895.5,0.001]
[1763579712732,0.4634,2895.6,2895.5,0.001]
[1763579713128,0.9241,2895.6,2895.5,0.001]
[1763579714590,0.4634,2895.1,2894.9,0.001]
[1763579714895,8.6184078,2895.0,2893.3,0.3752]
[1763579715196,0.90699264,2894.4,2892.8,0.3772]
[1763579715491,0.92989143,2894.2,2891.8,0.2507]
[1763579715666,0.92989143,2894.2,2892.5,0.3772]
[1763579715860,0.92989143,2894.2,2891.8,1.15769264]
[1763579715861,0.4607,2894.1,2892.8,0.3772]
[1763579716086,0.90699264,2894.0,2892.8,0.3772]
[1763579716250,3.91605398,2894.1,2892.8,0.3772]
[1763579716251,0.48230466,2893.9,2892.8,0.3772]
[1763579716456,0.1942,2893.9,2892.8,0.3772]
[1763579716953,0.1942,2893.9,2893.1,0.3772]
[1763579717750,0.4607,2893.8,2892.7,0.3772]
[1763579718156,0.90699264,2893.7,2892.3,0.3772]
[1763579718470,0.82790843,2893.6,2892.3,0.3772]
[1763579718664,1.36769264,2893.7,2892.4,0.405504]
[1763579718866,0.405504,2893.6,2891.8,0.1317]
[1763579719069,0.90699264,2893.4,2891.8,0.1317]
[1763579719281,0.7385584,2893.4,2891.9,0.3772]
[1763579719595,0.4607,2893.3,2892.0,0.03457814]
[1763579719760,0.4607,2893.3,2891.9,0.3772]
[1763579720087,3.91700314,2893.3,2891.9,0.3772]
[1763579720292,1.29869295,2893.2,2891.9,0.3772]
[1763579720500,1.75939295,2893.2,2891.9,0.3772]
[1763579720702,1.75939295,2893.2,2891.9,0.782704]
[1763579720703,0.4607,2893.1,2891.9,0.782704]
[1763579721192,0.4607,2893.1,2891.9,0.3772]
[1763579721356,0.4607,2893.1,2891.8,0.5089]
[1763579721558,0.1759393,2893.0,2891.9,0.44008334]
[1763579721773,0.1759393,2893.0,2891.9,0.81728334]
[1763579721975,0.39170031,2893.2,2892.0,0.405504]
[1763579722269,0.4607,2893.3,2892.1,0.03457695]
[1763579722471,0.4607,2893.6,2892.2,0.405504]
[1763579722794,0.4607,2893.6,2892.3,0.3772]
[1763579723357,8.6157078,2893.6,2891.9,0.405504]
[1763579723558,0.405504,2893.4,2891.8,0.001]
[1763579723769,0.405504,2892.9,2891.8,0.001]
[1763579724196,0.90699264,2892.6,2891.8,0.001]
[1763579724398,0.84758484,2892.6,2891.8,0.001]
[1763579724688,0.4607,2892.5,2891.8,0.001]
[1763579725957,0.4658,2891.9,2891.8,0.001]
[1763579726154,0.4607,2892.5,2891.8,0.001]
[1763579729584,0.1942,2892.8,2891.9,0.3772]
[1763579729787,0.55928245,2892.8,2891.9,0.3772]
[1763579730317,0.1942,2892.8,2891.9,0.3772]
[1763579730524,1.10119264,2892.8,2891.9,0.3772]
[1763579730705,1.10119264,2892.8,2891.8,0.001]
[1763579730915,0.4978,2892.7,2891.8,0.001]
[1763579731506,0.4978,2892.7,2891.8,0.3782]
[1763579732790,0.1932,2893.6,2892.6,0.5089]
[1763579732985,0.1932,2893.6,2892.6,0.1317]
[1763579733232,0.4978,2893.5,2892.6,0.1317]
[1763579733525,0.1932,2893.6,2892.6,0.5089]
[1763579733901,7.10546478,2893.9,2892.7,0.782704]
[1763579733902,0.1942,2893.9,2892.7,0.782704]
[1763579734126,0.1942,2893.9,2892.9,0.405504]
[1763579734624,0.1942,2893.9,2892.7,0.405504]
[1763579734625,3.95346383,2893.8,2892.7,0.405504]
[1763579734938,7.40912766,2893.8,2892.6,0.5089]
[1763579735234,1.40479264,2893.7,2892.6,0.5089]
[1763579735618,1.40479264,2893.7,2892.4,0.1317]
[1763579735619,0.4978,2893.6,2892.4,0.1317]
[1763579736190,0.4978,2893.6,2892.1,0.3772]
[1763579736191,0.4978,2893.6,2892.1,0.1317]
[1763579736410,0.95598004,2893.5,2892.1,0.1317]
[1763579736607,0.90699264,2893.3,2892.1,0.1317]
[1763579737112,1.40479264,2893.3,2892.1,0.5089]
[1763579737348,0.4978,2893.2,2892.1,0.5089]
[1763579737650,0.4978,2893.2,2891.9,0.1317]
[1763579738472,0.90699264,2892.9,2891.8,0.001]
[1763579738755,0.90699264,2892.6,2891.8,0.001]
[1763579739234,0.479,2892.5,2891.8,0.001]
[1763579741130,0.90699264,2892.4,2891.8,0.001]
[1763579741467,0.479,2892.5,2891.8,0.001]
[1763579742130,8.30042706,2892.5,2891.8,0.001]
[1763579742325,0.83004271,2892.4,2891.8,0.001]
[1763579742548,1.30904271,2892.4,2891.8,0.001]
[1763579742869,1.38599264,2892.4,2891.8,0.001]
[1763579743068,0.90699264,2892.4,2891.8,0.001]
[1763579743277,0.6873,2891.9,2891.8,0.001]
[1763579743831,0.1882,2892.4,2891.8,0.3782]
[1763579744248,1.58690822,2892.6,2891.8,0.3782]
[1763579744437,0.90699264,2892.4,2891.8,0.001]
[1763579744635,1.64912973,2892.4,2891.8,0.001]
[1763579744857,0.479,2892.3,2891.8,0.001]
[1763579745269,0.90699264,2892.2,2891.8,0.001]
[1763579745573,1.64912973,2892.2,2891.8,0.001]
[1763579745783,0.55855977,2892.1,2891.8,0.001]
[1763579745974,1.77969686,2892.1,2891.8,0.001]
[1763579746350,1.22113709,2892.1,2891.8,0.001]
[1763579746765,0.74213709,2892.1,2891.8,0.001]
[1763579746950,1.64912973,2892.2,2891.8,0.001]
[1763579747150,2.12812973,2892.2,2891.8,0.001]
[1763579747363,0.74213709,2892.1,2891.8,0.001]
[1763579748176,1.66184531,2892.4,2891.8,0.001]
[1763579748337,2.83322497,2892.4,2891.8,0.001]
[1763579748676,0.90699264,2892.3,2891.8,0.001]
[1763579748887,1.64912973,2892.3,2891.8,0.001]
[1763579749174,2.12812973,2892.3,2891.8,0.001]
[1763579749371,1.22113709,2892.2,2891.8,0.001]
[1763579749571,0.4991,2891.9,2891.8,0.001]
[1763579751390,0.74213709,2892.0,2891.8,0.001]
[1763579751887,1.38599264,2892.1,2891.8,0.001]
[1763579752087,0.74213709,2892.0,2891.8,0.001]
[1763579753001,1.64912973,2892.0,2891.8,0.001]
[1763579753304,0.55858288,2891.9,2891.8,0.001]
[1763579753459,0.4991,2891.9,2891.8,0.001]
[1763579753895,0.74213709,2891.9,2891.8,0.001]
[1763579754193,0.74213709,2892.1,2891.8,0.001]
[1763579754393,2.12812973,2892.2,2891.8,0.001]
[1763579754556,0.74213709,2892.1,2891.8,0.001]
[1763579755502,0.74213709,2892.2,2891.8,0.001]
[1763579755795,0.74213709,2892.3,2892.0,0.3772]
[1763579755996,0.90699264,2892.3,2892.0,0.3772]
[1763579756291,0.74213709,2892.3,2892.0,0.3772]
[1763579756494,0.74213709,2892.4,2892.0,0.3772]
[1763579757080,0.74213709,2892.4,2892.1,0.1317]
[1763579757305,0.74213709,2892.4,2892.3,0.3772]
[1763579757602,0.74213709,2892.5,2891.8,0.001]
[1763579757895,4.36401662,2892.7,2891.8,0.001]
[1763579758078,0.74213709,2892.6,2891.9,0.3772]
[1763579758595,0.74213709,2892.7,2891.9,0.3772]
[1763579758772,1.64912973,2892.8,2891.9,0.3772]
[1763579759004,0.74213709,2892.8,2891.9,0.3772]
[1763579759212,1.85004531,2892.9,2891.9,0.3772]
[1763579759511,0.90699264,2892.8,2891.9,0.3772]
[1763579759830,1.64912973,2892.8,2891.9,0.3772]
[1763579760424,0.74213709,2892.8,2891.9,0.3772]
[1763579760733,0.74213709,2892.8,2891.8,0.001]
[1763579760734,0.479,2892.7,2891.8,0.001]
[1763579760933,0.74213709,2892.7,2891.8,0.3782]
[1763579761117,0.57625749,2892.6,2891.8,0.3782]
[1763579761432,3.45721694,2892.5,2891.8,0.001]
[1763579761639,1.22113709,2892.4,2891.8,0.001]
[1763579761828,0.4678354,2892.3,2891.8,0.001]
[1763579762134,0.74213709,2892.4,2891.8,0.001]
[1763579762438,0.74213709,2892.5,2891.8,0.3782]
[1763579762644,4.8430474,2892.7,2891.8,0.001]
[1763579762935,0.74213709,2892.6,2891.8,0.001]
[1763579763305,0.74213709,2892.6,2891.9,0.3772]
[1763579763841,1.25274987,2892.6,2891.9,0.3772]
[1763579764144,1.25274987,2892.6,2891.8,0.001]
[1763579764322,1.25274987,2892.6,2891.9,0.3772]
[1763579764528,0.74213709,2892.6,2891.9,0.3772]
[1763579764735,0.91970822,2893.3,2892.5,0.5089]
[1763579764898,1.66568566,2893.4,2892.7,0.3772]
[1763579765246,0.91970822,2893.4,2892.7,0.3772]
[1763579765553,0.91970822,2893.4,2891.8,0.001]
[1763579765554,0.6873,2892.8,2892.3,0.1317]
[1763579765847,0.74597744,2892.9,2892.3,0.1317]
[1763579766148,0.1882,2892.7,2892.0,0.3772]
[1763579766344,0.32399091,2892.7,2892.0,0.3772]
[1763579766754,1.06996835,2892.8,2892.0,0.3772]
[1763579766957,0.32399091,2892.7,2892.0,0.3772]
[1763579769250,0.32399091,2892.8,2892.6,0.3772]
[1763579769555,0.93315347,2894.0,2892.8,0.3772]
[1763579769756,0.93315347,2894.0,2892.5,0.405504]
[1763579769757,0.51946735,2893.9,2893.1,0.3772]
[1763579769929,0.32386735,2893.9,2893.2,0.5247]
[1763579770446,0.32386735,2893.9,2892.2,0.3466]
[1763579770447,0.478,2893.3,2892.2,0.3466]
[1763579770614,0.478,2893.3,2892.4,0.405504]
[1763579770817,0.4876,2893.5,2892.4,0.405504]
[1763579771149,0.4876,2893.5,2892.5,0.3772]
[1763579771332,0.32386735,2893.6,2892.6,0.405504]
[1763579771656,0.32386735,2893.6,2891.9,0.1317]
[1763579771657,0.74612132,2893.9,2892.8,0.405504]
[1763579771958,1.84871396,2894.1,2892.8,0.405504]
[1763579772122,1.41516952,2894.0,2893.0,0.405504]
[1763579772317,1.57946404,2894.0,2893.0,0.405504]
[1763579772518,1.57946404,2894.0,2893.1,0.1475]
[1763579772519,0.4876,2893.9,2893.1,0.1475]
[1763579772754,0.81068782,2893.9,2893.1,0.1475]
[1763579772961,1.55503224,2893.9,2892.4,0.3772]
[1763579773130,0.478,2893.2,2892.1,0.3772]
[1763579773331,0.478,2893.2,2891.9,0.1317]
[1763579773332,0.478,2893.2,2891.9,0.5089]
[1763579773720,1.23008046,2893.2,2892.0,0.782704]
[1763579774056,0.4876,2893.1,2892.0,0.782704]
[1763579774758,0.81074218,2893.1,2892.0,0.783704]
[1763579774960,0.81074218,2893.1,2892.0,0.001]
[1763579774961,1.65751674,2893.1,2892.0,0.001]
[1763579775121,1.55522146,2893.0,2892.0,0.001]
[1763579775320,0.32314218,2892.9,2892.0,0.001]
[1763579775565,3.4568584,2892.8,2892.0,0.001]
[1763579775857,4.13996206,2892.9,2892.0,0.001]
[1763579776060,0.73719346,2892.8,2892.0,0.001]
[1763579776361,0.41399621,2892.8,2892.0,0.001]
[1763579776524,0.73723696,2892.8,2892.0,0.001]
[1763579776723,0.84677456,2893.1,2892.1,0.3772]
[1763579776919,0.32321959,2893.0,2892.1,0.3772]
[1763579777227,0.32321959,2893.1,2892.1,0.3772]
[1763579777438,0.81081959,2893.1,2892.1,0.3772]
[1763579778059,3.944105,2893.1,2892.1,0.3772]
[1763579778265,0.4876,2893.0,2892.1,0.3772]
[1763579778424,0.3944105,2892.9,2892.0,0.001]
[1763579778624,0.5900105,2892.9,2892.0,0.001]
[1763579778823,0.1956,2892.9,2892.0,0.3782]
[1763579779659,1.10259264,2893.4,2892.1,0.405504]
[1763579779660,4.13936033,2893.4,2892.1,0.405504]
[1763579779958,2.46253579,2893.3,2892.1,0.405504]
[1763579780264,0.32324485,2893.2,2892.1,0.3772]
[1763579780471,0.32328135,2893.2,2892.1,0.3772]
[1763579780625,1.71787399,2893.3,2892.1,0.3772]
[1763579780824,1.95067682,2893.2,2892.1,0.3772]
[1763579781065,0.8825875,2893.2,2892.1,0.3772]
[1763579781260,1.62746169,2893.2,2892.1,0.3772]
[1763579781425,0.8825875,2893.2,2892.1,0.3772]
[1763579781633,0.1956,2893.4,2892.1,0.3772]
[1763579782039,0.32330202,2893.4,2892.3,0.405504]
[1763579782240,0.32330202,2893.4,2892.1,0.3772]
[1763579782241,0.4876,2893.6,2892.1,0.3772]
[1763579782564,0.90699264,2893.3,2892.0,0.001]
[1763579782765,1.27345386,2893.2,2892.0,0.001]
[1763579782928,1.06825914,2893.1,2892.0,0.001]
[1763579783150,0.32330202,2893.0,2892.0,0.001]
[1763579783351,0.1956,2892.9,2892.0,0.001]
[1763579783730,0.4876,2892.8,2892.0,0.001]
[1763579783953,0.41400243,2892.7,2892.0,0.001]
[1763579784184,1.15942292,2892.7,2892.0,0.001]
[1763579784353,1.15942292,2892.7,2892.1,0.1317]
[1763579784551,0.41400243,2892.7,2892.1,0.1317]
[1763579784762,0.90160243,2892.7,2892.0,0.001]
[1763579784960,0.74543556,2892.7,2892.0,0.001]
[1763579785267,0.6526,2892.9,2892.0,0.3782]
[1763579785767,1.3980184,2892.9,2892.0,0.3782]
[1763579786367,2.30501104,2892.9,2892.0,0.3782]
[1763579786678,1.36399264,2892.8,2892.0,0.001]
[1763579786839,2.6114196,2892.8,2892.0,0.001]
[1763579787033,0.95863669,2892.8,2892.0,0.001]
[1763579787234,1.70446454,2892.8,2892.0,0.001]
[1763579787742,1.24746454,2892.8,2892.0,0.001]
[1763579787930,0.457,2892.7,2892.0,0.001]
[1763579789372,1.86563379,2892.7,2892.0,0.001]
[1763579789577,0.4875,2892.1,2892.0,0.001]
[1763579789979,0.74588756,2892.3,2892.0,0.001]
[1763579790269,0.90699264,2892.6,2892.0,0.001]
[1763579790430,1.65294538,2892.6,2892.0,0.001]
[1763579790636,0.4875,2892.1,2892.0,0.001]
[1763579791878,0.457,2892.4,2892.0,0.001]
[1763579792056,0.74595478,2892.6,2892.0,0.001]
[1763579792467,0.90699264,2892.5,2892.0,0.001]
[1763579792664,0.4875,2892.1,2892.0,0.001]
[1763579793937,1.20295478,2892.4,2892.0,0.001]
[1763579793938,0.74595478,2892.3,2892.0,0.3782]
[1763579794145,0.457,2892.8,2892.1,0.1317]
[1763579794353,0.94114938,2892.9,2892.2,0.3772]
[1763579794564,0.77438061,2892.9,2892.2,0.3772]
[1763579794765,1.97692999,2892.9,2892.2,0.3772]
[1763579795169,0.90699264,2892.8,2892.2,0.3772]
[1763579795375,0.32349655,2892.7,2892.2,0.3772]
[1763579795744,0.78049655,2892.7,2892.1,0.1317]
[1763579795944,0.32349655,2892.6,2892.1,0.1317]
[1763579796187,0.78049655,2892.7,2892.1,0.1317]
[1763579796351,1.52571441,2892.7,2892.1,0.1317]
[1763579796552,0.457,2892.7,2892.1,0.1317]
[1763579796883,0.7803991,2892.7,2892.1,0.1317]
[1763579797051,1.68739174,2892.7,2892.1,0.1317]
[1763579797251,1.36399264,2892.7,2892.1,0.1317]
[1763579797881,0.457,2892.7,2892.1,0.1317]
[1763579798085,0.78036856,2892.7,2892.1,0.1317]
[1763579798763,0.457,2892.7,2892.1,0.1317]
[1763579799254,0.78039801,2892.7,2892.1,0.1317]
[1763579799791,0.457,2892.7,2892.1,0.1317]
[1763579800503,0.78032697,2892.7,2892.2,0.1317]
[1763579800865,0.32332697,2892.7,2892.2,0.1317]
[1763579801091,0.94079567,2892.9,2892.2,0.5089]
[1763579801287,0.32347577,2892.8,2892.2,0.1317]
[1763579801487,0.1956,2892.9,2892.2,0.1317]
[1763579801693,0.32347577,2893.0,2892.3,0.3772]
[1763579801907,0.1897,2892.9,2892.2,0.1317]
[1763579802112,1.25837144,2892.9,2892.2,0.1317]
[1763579802410,0.32347577,2892.8,2892.2,0.1317]
[1763579803274,0.32347577,2892.8,2892.0,0.001]
[1763579803275,0.478,2892.7,2892.0,0.001]
[1763579803483,0.80147577,2892.7,2892.0,0.001]
[1763579804482,1.54667144,2892.7,2892.0,0.001]
[1763579804808,0.1897,2892.9,2892.1,0.3772]
[1763579805507,1.42072937,2892.9,2892.1,0.3772]
[1763579805695,1.07086617,2892.8,2892.1,0.3772]
[1763579805863,0.32403673,2892.7,2892.1,0.3772]
[1763579806068,0.32403673,2892.7,2892.0,0.001]
[1763579806302,0.80203673,2892.7,2892.0,0.001]
[1763579806464,0.478,2892.6,2892.0,0.001]
[1763579806667,0.80203673,2892.6,2892.0,0.001]
[1763579806908,0.478,2892.6,2892.0,0.001]
[1763579807273,0.32395184,2892.7,2892.0,0.001]
[1763579808077,0.32395184,2892.7,2892.0,0.3782]
[1763579808275,0.32395184,2892.8,2892.0,0.3782]
[1763579809071,0.80195184,2892.8,2892.0,0.3782]
[1763579809273,1.15979203,2892.8,2892.0,0.001]
[1763579809476,0.80195184,2892.7,2892.0,0.001]
[1763579809703,0.478,2892.6,2892.0,0.001]
[1763579809916,1.54855575,2892.6,2892.0,0.001]
[1763579810115,1.07055575,2892.5,2892.0,0.001]
[1763579810406,0.32395184,2892.4,2892.0,0.001]
[1763579810706,0.80195184,2892.4,2892.0,0.001]
[1763579810876,0.478,2892.4,2892.0,0.001]
[1763579811701,0.32057594,2892.1,2892.0,0.001]
[1763579812127,0.32413835,2892.3,2892.0,0.001]
[1763579812403,1.07100398,2892.3,2892.0,0.001]
[1763579812606,0.32413835,2892.2,2892.0,0.001]
[1763579812773,0.80213835,2892.3,2892.0,0.001]
[1763579812973,1.54900398,2892.3,2892.0,0.001]
[1763579813169,1.07100398,2892.2,2892.0,0.001]
[1763579813403,0.32413835,2892.1,2892.0,0.001]
[1763579813609,0.80213835,2892.3,2892.0,0.001]
[1763579814005,0.32413835,2892.2,2892.0,0.001]
[1763579814205,0.478,2892.3,2892.0,0.001]
[1763579814405,0.32413835,2892.3,2892.0,0.001]
[1763579814908,0.478,2892.3,2892.0,0.001]
[1763579815132,0.4518,2892.1,2892.0,0.001]
[1763579815711,0.32413835,2892.2,2892.0,0.001]
[1763579815911,0.4518,2892.1,2892.0,0.001]
[1763579816491,0.9298,2892.1,2892.0,0.001]
[1763579816730,2.98563298,2892.1,2892.0,0.001]
[1763579816922,7.35032072,2892.1,2892.0,0.001]
[1763579817720,7.35000538,2892.1,2892.0,0.001]
[1763579818537,3.89231028,2892.1,2892.0,0.001]
[1763579818722,2.90740595,2892.1,2892.0,0.001]
[1763579819231,6.36510105,2892.1,2892.0,0.001]
[1763579819826,2.90740595,2892.1,2892.0,0.001]
[1763579820791,6.36510105,2892.1,2892.0,0.001]
[1763579820992,7.29825452,2892.1,2892.0,0.001]
[1763579821189,9.82977425,2892.1,2892.0,0.001]
[1763579821395,4.96249664,2892.0,2891.8,0.001]
[1763579821588,8.22798681,2891.9,2891.8,0.001]
[1763579821831,8.22798681,2891.9,2890.0,1.0]
[1763579821832,0.405504,2891.3,2890.0,1.0]
[1763579821993,0.93072546,2890.8,2890.0,1.0]
[1763579822192,0.32374768,2890.7,2890.0,1.0]
[1763579822388,0.99144768,2890.7,2890.0,1.0]
[1763579822623,0.80174768,2890.6,2890.0,1.0]
[1763579822848,0.88172209,2890.5,2890.0,1.0]
[1763579823057,0.32374768,2890.4,2890.0,1.0]
[1763579823248,0.4518,2890.1,2890.0,1.0]
[1763579824848,4.38988788,2890.1,2890.0,1.0]
[1763579825067,13.79225833,2890.1,2890.0,1.0]
[1763579825225,16.25829263,2890.1,2890.0,1.0]
[1763579825428,16.66379663,2890.1,2890.0,1.0]
[1763579825616,1.31249664,2890.0,2888.3,0.4601]
[1763579825830,0.405504,2889.8,2888.3,0.4601]
[1763579826127,0.72712417,2889.8,2888.3,0.4601]
[1763579826312,0.90699264,2889.5,2888.2,0.1317]
[1763579826728,0.90699264,2889.5,2887.8,0.5591]
[1763579826729,0.6245,2888.3,2887.8,0.099]
[1763579827313,0.4518,2888.3,2887.8,0.099]
[1763579828163,0.4554,2888.2,2888.1,0.001]
[1763579828624,0.1897,2888.5,2888.1,0.6145]
[1763579828824,0.6451,2888.5,2888.1,0.001]
[1763579829054,0.4658,2888.2,2888.1,0.001]
[1763579829271,0.1897,2888.5,2888.1,0.001]
[1763579829426,0.6451,2888.5,2888.1,0.001]
[1763579829629,0.4658,2888.2,2888.1,0.001]
[1763579829849,0.64861926,2888.2,2888.1,0.001]
[1763579830018,1.10401926,2888.2,2888.1,0.001]
[1763579830475,1.10401926,2888.2,2886.4,0.1505]
[1763579830476,0.4658,2888.0,2886.4,0.1505]
[1763579830781,1.36239264,2888.1,2886.4,0.1505]
[1763579830782,0.3688,2887.2,2886.4,0.1505]
[1763579831001,0.3688,2887.2,2886.4,0.6316]
[1763579831202,1.45914468,2888.0,2887.1,0.5828]
[1763579831203,0.90699264,2887.7,2887.1,0.5828]
[1763579831407,1.45914468,2888.0,2887.1,0.5828]
[1763579831408,0.4554,2888.0,2887.1,0.5828]
[1763579831573,0.1897,2888.5,2886.5,0.4811]
[1763579831574,0.4554,2887.9,2886.8,0.4811]
[1763579832119,0.6451,2888.5,2887.8,0.5828]
[1763579832278,4.10715242,2888.5,2886.9,0.405504]
[1763579832471,4.10715242,2888.5,2887.1,0.405504]
[1763579832472,0.90699264,2888.4,2887.1,0.405504]
[1763579832673,0.90699264,2888.3,2887.1,0.405504]
[1763579833019,0.94659399,2888.5,2887.3,0.405504]
[1763579833319,0.6451,2888.5,2887.3,0.405504]
[1763579833488,0.4554,2888.4,2887.3,0.886604]
[1763579833684,0.1923,2888.7,2887.5,0.405504]
[1763579833925,0.1923,2888.7,2887.6,0.03463083]
[1763579834162,0.1923,2888.7,2887.7,0.405504]
[1763579834454,3.6534911,2889.2,2888.6,0.1317]
[1763579834455,0.1923,2889.2,2888.6,0.1317]
[1763579834751,0.1923,2889.2,2887.2,1.00799264]
[1763579834752,0.4554,2889.1,2887.9,0.405504]
[1763579835147,1.36239264,2889.1,2888.0,0.4811]
[1763579835546,1.36239264,2889.1,2888.1,0.1317]
[1763579835547,1.36239264,2889.0,2888.1,0.1317]
[1763579835846,1.36239264,2889.0,2887.2,0.101]
[1763579836028,0.4554,2888.9,2887.8,0.4811]
[1763579836947,0.93776872,2888.9,2887.8,0.4811]
[1763579837148,1.36239264,2888.9,2887.8,0.4811]
[1763579837451,0.1923,2889.2,2887.9,0.405504]
[1763579837652,0.1923,2889.2,2887.3,0.405504]
[1763579837953,0.1923,2889.2,2888.1,0.405504]
[1763579838109,0.1923,2889.2,2888.2,0.6128]
[1763579838311,0.1923,2889.2,2888.3,0.4811]
[1763579839047,1.36239264,2889.1,2888.2,0.1317]
[1763579839248,0.4554,2889.1,2888.2,0.1317]
[1763579839452,0.4554,2889.0,2887.6,0.4811]
[1763579839825,0.4554,2889.0,2887.7,0.405504]
[1763579840025,1.30310339,2889.0,2887.7,0.405504]
[1763579840356,1.30310339,2889.0,2887.8,0.4811]
[1763579840557,0.4554,2888.9,2887.8,0.4811]
[1763579840917,1.36239264,2888.9,2887.8,0.4811]
[1763579841322,0.4554,2888.9,2887.8,0.4811]
[1763579841733,0.90699264,2888.8,2887.8,0.4811]
[1763579842144,0.4554,2888.7,2887.8,0.4811]
[1763579842344,0.48238152,2888.9,2887.8,0.4811]